fUST/lending_fUST_20250622
["ID","MTS","AMOUNT","RATE_DAILY","PERIOD"]
[366981949,1750604654133,-297.2,0.00041096,120]
[366981950,1750604654188,-200.0,0.00041138,120]
[366981951,1750604654247,-200.0,0.00041242,120]
[366981952,1750604654302,-200.0,0.00041432,120]
[366981953,1750604654355,-200.0,0.00041444,120]
[366981954,1750604654408,-200.0,0.00041444,120]
[366981955,1750604654461,-200.0,0.00041444,120]
[366981956,1750604654516,-200.0,0.00041444,120]
[366981957,1750604654574,-200.0,0.00041534,120]
[366981958,1750604654638,-200.0,0.00041726,120]
[366981959,1750604654700,-200.0,0.00041765,120]
[366981960,1750604654761,-200.0,0.00041829,120]
[366981961,1750604654822,-6895.42,0.00041832,30]
[366981962,1750604654884,-16895.39,0.00041917,120]
[366981963,1750604654946,-1500.0,0.00042,120]
[366981964,1750604655004,-300.01861483,0.00042,120]
[366981965,1750604655062,-200.0,0.00042098,120]
[366981966,1750604655120,-279.96,0.00042177,120]
[366981967,1750604655176,-1759.46308115,0.000424,120]
[366981968,1750604655233,-5686.61,0.000424,120]
[366981969,1750604655288,-500.0,0.00042421,30]
[366981970,1750604655343,-500.0,0.00042421,30]
[366981971,1750604655400,-5000.0,0.00042585,30]
[366981972,1750604655457,-5000.0,0.00042585,30]
[366981973,1750604655517,-5000.0,0.00042585,30]
[366981974,1750604655577,-1537.38,0.00042585,30]
[366981975,1750604655643,-152.0,0.00042664,31]
[366981976,1750604655706,-16895.39,0.00042739,120]
[366981977,1750604655767,-165.0,0.00042877,80]
[366981978,1750604655825,-50552.20466162,0.00042887,60]
[366981979,1750604655887,-200.0,0.00042978,120]
[366981980,1750604655946,-1000.0,0.00043,120]
[366981981,1750604656005,-143789.16650334,0.00043,120]
[366981982,1750604656061,-3016.0,0.00043,120]
[366981983,1750604656118,-3005.5348473,0.00043,60]
[366981984,1750604656173,-200.0,0.00043138,120]
[366981985,1750604656228,-34161.65084,0.000432,120]
[366981986,1750604656284,-7757.34,0.00043326,30]
[366981987,1750604656343,-838.653,0.00043385,67]
[366981988,1750604656406,-151.0,0.00043451,85]
[366981989,1750604656467,-1000.0,0.00043451,85]
[366981990,1750604656526,-1000.0,0.00043451,85]
[366981991,1750604656583,-5649.767834,0.000435,120]
[366981992,1750604656645,-279.96,0.00043547,120]
[366981993,1750604656706,-16895.39,0.00043561,120]
[366981994,1750604656765,-200.0,0.00043756,120]
[366981995,1750604656823,-200.0,0.0004393,120]
[366981996,1750604656877,-1000.0,0.00043999,120]
[366981997,1750604656930,-13599.0,0.00044,120]
[366981998,1750604656981,-212.54469151,0.00044,120]
[366981999,1750604657033,-2503.88364477,0.00044,120]
[366982000,1750604657085,-1500.0,0.00044,120]
[366982001,1750604657134,-10000.0,0.00044,60]
[366982002,1750604657187,-14999.960848,0.000442,120]
[366982003,1750604657240,-152.0,0.00044287,31]
[366982004,1750604657293,-16895.39,0.00044383,120]
[366982005,1750604657342,-2000.0,0.000445,120]
[366982006,1750604657391,-500.0,0.00044542,30]
[366982007,1750604657445,-500.0,0.00044542,30]
[366982008,1750604657498,-200.0,0.00044679,120]
[366982009,1750604657553,-200.0,0.0004474,120]
[366982010,1750604657762,-4946.83,0.00044774,30]
[366982011,1750604657820,-8619.27,0.0004482,30]
[366982012,1750604657874,-200.0,0.00044867,120]
[366982013,1750604657925,-200.0,0.00044909,120]
[366982014,1750604657979,-279.96,0.00044917,120]
[366982015,1750604658031,-151.0,0.00044999,60]
[366982016,1750604658083,-151.0,0.00044999,90]
[366982017,1750604658138,-1000.0,0.00044999,60]
[366982018,1750604658190,-1000.0,0.00044999,90]
[366982019,1750604658243,-1000.0,0.00044999,60]
[366982020,1750604658296,-1000.0,0.00044999,90]
[366982021,1750604658349,-300.0,0.00044999,60]
[366982022,1750604658402,-1000.0,0.00045,120]
[366982023,1750604658455,-1749.999999,0.00045,120]
[366982024,1750604658508,-1137.1328405,0.00045,120]
[366982025,1750604658560,-77898.09069751,0.00045,120]
[366982026,1750604658614,-4526.0,0.00045,120]
[366982027,1750604658670,-4526.0,0.00045,120]
[366982028,1750604658726,-4526.0,0.00045,120]
[366982029,1750604658778,-4526.0,0.00045,120]
[366982030,1750604658836,-4526.0,0.00045,120]
[366982031,1750604658891,-4526.0,0.00045,120]
[366982032,1750604658950,-4526.0,0.00045,120]
[366982033,1750604659004,-4526.0,0.00045,120]
[366982034,1750604659058,-4526.0,0.00045,120]
[366982035,1750604659110,-9905.53737019,0.00045,120]
[366982036,1750604659162,-680.07063926,0.00045,120]
[366982037,1750604659214,-3016.0,0.00045,120]
[366982038,1750604659268,-10025.63958412,0.00045,120]
[366982039,1750604659321,-5022.98893284,0.00045,120]
[366982040,1750604659374,-200.0,0.00045073,120]
[366982041,1750604659430,-1449.33260111,0.00045093,90]
[366982042,1750604659493,-16895.39,0.00045205,120]
[366982043,1750604659549,-5686.61,0.000454,120]
[366982044,1750604659604,-1895.53,0.000454,120]
[366982045,1750604659661,-168635.65286071,0.00045488,120]
[366982046,1750604659719,-200.0,0.00045602,120]
[366982047,1750604659773,-5000.0,0.0004568,30]
[366982048,1750604659831,-1454.5151727,0.00045683,120]
[366982049,1750604659890,-1454.5151727,0.00045801,120]
[366982050,1750604659947,-1454.5151727,0.00045816,120]
[366982051,1750604660003,-1454.5151727,0.00045904,120]
[366982052,1750604660058,-151.0,0.00045909,30]
[366982053,1750604660112,-151.0,0.00045909,30]
[366982054,1750604660167,-1000.0,0.00045909,30]
[366982055,1750604660224,-1000.0,0.00045909,30]
[366982056,1750604660280,-300.0,0.00045909,30]
[366982057,1750604660336,-152.0,0.0004591,31]
[366982058,1750604660391,-1500.0,0.00046,120]
[366982059,1750604660446,-16895.39,0.00046027,120]
[366982060,1750604660501,-279.96,0.00046287,120]
[366982061,1750604660558,-200.0,0.00046574,120]
[366982062,1750604660614,-151.0,0.00046574,120]
[366982063,1750604660670,-151.0,0.00046574,120]
[366982064,1750604660725,-151.0,0.00046574,120]
[366982065,1750604660778,-151.0,0.00046574,120]
[366982066,1750604660832,-1000.0,0.00046574,120]
[366982067,1750604660885,-500.0,0.00046574,120]
[366982068,1750604660939,-1000.0,0.00046574,120]
[366982069,1750604660990,-5000.0,0.00046574,120]
[366982070,1750604661040,-5000.0,0.00046574,120]
[366982071,1750604661090,-5000.0,0.00046574,120]
[366982072,1750604661141,-5000.0,0.00046574,120]
[366982073,1750604661189,-5000.0,0.00046574,120]
[366982074,1750604661241,-5000.0,0.00046574,120]
[366982075,1750604661294,-5000.0,0.00046574,120]
[366982076,1750604661345,-5000.0,0.00046574,120]
[366982077,1750604661393,-300.0,0.00046574,120]
[366982078,1750604661445,-5000.0,0.00046574,120]
[366982079,1750604661497,-5000.0,0.00046574,120]
[366982080,1750604661547,-5000.0,0.00046574,120]
[366982081,1750604661598,-5000.0,0.00046574,120]
[366982082,1750604661647,-5000.0,0.00046574,120]
[366982083,1750604661699,-5000.0,0.00046574,120]
[366982084,1750604661751,-5000.0,0.00046574,120]
[366982085,1750604661799,-5000.0,0.00046574,120]
[366982086,1750604661849,-5000.0,0.00046574,120]
[366982087,1750604661896,-5000.0,0.00046574,120]
[366982088,1750604662288,160.0,0.00031,120]
[366982089,1750604663051,425.01221603,0.00025,30]
[366982090,1750604663132,425.01221603,0.00031,120]
[366982091,1750604714302,-374.0,0.00019175,2]
[366982092,1750604725744,374.0,0.0001911,2]
[366982093,1750604743983,565.3884267,0.00018585,2]
[366982094,1750604747119,-196.73905419,0.00019175,2]
[366982095,1750604751090,-629.26094581,0.00019175,2]
[366982096,1750604751112,-219.06276829,0.00019176,2]
[366982097,1750604752159,-80.93723171,0.00019176,2]
[366982098,1750604752182,-107.30214032,0.00019176,2]
[366982099,1750604752671,-188.23937203,0.00019176,2]
[366982100,1750604759900,-4.45848765,0.00019176,2]
[366982101,1750604759924,-209.61513429,0.00019176,2]
[366982102,1750604763243,-90.38486571,0.00019176,2]
[366982103,1750604763266,-107.31392645,0.00019176,2]
[366982104,1750604773314,-192.68607355,0.00019176,2]
[366982105,1750604773339,-48.13644867,0.00019176,2]
[366982106,1750604798158,-157.43,0.00019176,2]
[366982107,1750604812641,153.0,0.00025,120]
[366982108,1750604824338,-94.43355133,0.00019176,2]
[366982109,1750604824363,-66.32048807,0.00019176,2]
[366982110,1750604829114,-233.67951193,0.00019176,2]
[366982111,1750604829140,-658.76937158,0.00019177,2]
[366982112,1750604831548,-223.0,0.00019177,2]
[366982113,1750604845106,-3001.13129595,0.00019177,2]
[366982114,1750604848055,-213.95836848,0.00019177,2]
[366982115,1750604849909,160.7540394,0.00019077,2]
[366982116,1750604884863,-233.6115,0.00019176,2]
[366982117,1750604889900,233.6115,0.0001911,2]
[366982118,1750604892613,1907.75,0.00025,120]
[366982119,1750604905439,1430.81,0.00025,120]
[366982120,1750604906719,200.0,0.00024931,120]
[366982121,1750604916352,1430.81,0.00025,120]
[366982122,1750604920697,1000.0,0.00025,120]
[366982123,1750604928397,1430.81,0.00025,120]
[366982124,1750604942625,1430.81,0.00025,120]
[366982125,1750604947207,-300.0,0.00019176,2]
[366982126,1750604947232,-160.0,0.00019177,2]
[366982127,1750604947255,-20579.49096399,0.00019177,2]
[366982128,1750604947276,-414.59811191,0.00019293,2]
[366982129,1750604947301,-2074.30061943,0.00019468,2]
[366982130,1750604947323,-414.59811191,0.00019502,2]
[366982131,1750604947346,-341.00284777,0.0001953,2]
[366982132,1750604947370,-1436.89,0.00019586,2]
[366982133,1750604947392,-151.0,0.000196,2]
[366982134,1750604947419,-2277.0,0.00019621,2]
[366982135,1750604947440,-325.46220785,0.0001963,2]
[366982136,1750604947462,-500.0,0.0001963,2]
[366982137,1750604947484,-500.0,0.0001963,2]
[366982138,1750604947506,-500.0,0.0001963,2]
[366982139,1750604947529,-500.0,0.0001963,2]
[366982140,1750604947551,-500.0,0.0001963,2]
[366982141,1750604947577,-500.0,0.0001963,2]
[366982142,1750604947601,-537.40560934,0.0001963,2]
[366982143,1750604947627,-500.0,0.0001963,2]
[366982144,1750604947655,-1130.8948885,0.0001963,2]
[366982145,1750604947679,-500.0,0.0001963,2]
[366982146,1750604947708,-577.34840333,0.0001963,2]
[366982147,1750604947732,-500.0,0.0001963,2]
[366982148,1750604947754,-500.0,0.0001963,2]
[366982149,1750604947780,-1130.8948885,0.0001963,2]
[366982150,1750604947803,-500.0,0.0001963,2]
[366982151,1750604947827,-500.0,0.0001963,2]
[366982152,1750604947850,-500.0,0.0001963,2]
[366982153,1750604947873,-500.0,0.0001963,2]
[366982154,1750604947898,-500.0,0.0001963,2]
[366982155,1750604947925,-1130.8948885,0.0001963,2]
[366982156,1750604947948,-500.0,0.0001963,2]
[366982157,1750604947971,-500.0,0.0001963,2]
[366982158,1750604947995,-500.0,0.0001963,2]
[366982159,1750604948020,-500.0,0.0001963,2]
[366982160,1750604948043,-445.0413126,0.0001963,2]
[366982161,1750604948067,-1130.8948885,0.0001963,2]
[366982162,1750604948091,-500.0,0.0001963,2]
[366982163,1750604948114,-500.0,0.0001963,2]
[366982164,1750604948136,-500.0,0.0001963,2]
[366982165,1750604948159,-500.0,0.0001963,2]
[366982166,1750604948182,-500.0,0.0001963,2]
[366982167,1750604948209,-1130.8948885,0.0001963,2]
[366982168,1750604948232,-176.2983785,0.0001963,2]
[366982169,1750604948259,-500.0,0.0001963,2]
[366982170,1750604948285,-1130.8948885,0.0001963,2]
[366982171,1750604948308,-500.0,0.0001963,2]
[366982172,1750604948331,-500.0,0.0001963,2]
[366982173,1750604948355,-500.0,0.0001963,2]
[366982174,1750604948380,-1130.8948885,0.0001963,2]
[366982175,1750604948404,-500.0,0.0001963,2]
[366982176,1750604948427,-500.0,0.0001963,2]
[366982177,1750604948453,-1130.8948885,0.0001963,2]
[366982178,1750604948479,-500.0,0.0001963,2]
[366982179,1750604948508,-1130.8948885,0.0001963,2]
[366982180,1750604948532,-500.0,0.0001963,2]
[366982181,1750604948558,-500.0,0.0001963,2]
[366982182,1750604948581,-500.0,0.0001963,2]
[366982183,1750604948607,-1130.8948885,0.0001963,2]
[366982184,1750604948633,-1130.8948885,0.0001963,2]
[366982185,1750604948658,-1130.8948885,0.0001963,2]
[366982186,1750604948687,-1130.8948885,0.0001963,2]
[366982187,1750604948715,-1130.8948885,0.0001963,2]
[366982188,1750604948952,-1130.8948885,0.0001963,2]
[366982189,1750604948978,-1130.8948885,0.0001963,2]
[366982190,1750604949003,-1130.8948885,0.0001963,2]
[366982191,1750604949028,-1130.8948885,0.0001963,2]
[366982192,1750604949052,-1130.8948885,0.0001963,2]
[366982193,1750604949077,-1130.8948885,0.0001963,2]
[366982194,1750604949102,-1130.8948885,0.0001963,2]
[366982195,1750604949127,-1130.8948885,0.0001963,2]
[366982196,1750604949154,-1130.8948885,0.0001963,2]
[366982197,1750604949181,-1130.8948885,0.0001963,2]
[366982198,1750604949206,-1130.8948885,0.0001963,2]
[366982199,1750604949231,-1130.8948885,0.0001963,2]
[366982200,1750604949256,-1130.8948885,0.0001963,2]
[366982201,1750604949282,-1130.8948885,0.0001963,2]
[366982202,1750604949307,-1130.8948885,0.0001963,2]
[366982203,1750604949330,-500.0,0.0001963,2]
[366982204,1750604949356,-500.0,0.0001963,2]
[366982205,1750604949380,-500.0,0.0001963,2]
[366982206,1750604949405,-500.0,0.0001963,2]
[366982207,1750604949428,-500.0,0.0001963,2]
[366982208,1750604949453,-500.0,0.0001963,2]
[366982209,1750604949478,-500.0,0.0001963,2]
[366982210,1750604949503,-500.0,0.0001963,2]
[366982211,1750604949528,-500.0,0.0001963,2]
[366982212,1750604949552,-500.0,0.0001963,2]
[366982213,1750604949577,-500.0,0.0001963,2]
[366982214,1750604949601,-500.0,0.0001963,2]
[366982215,1750604949625,-500.0,0.0001963,2]
[366982216,1750604949649,-500.0,0.0001963,2]
[366982217,1750604949677,-500.0,0.0001963,2]
[366982218,1750604949705,-381.25947673,0.0001963,2]
[366982219,1750604949732,-2934.81281528,0.0001963,2]
[366982220,1750604949760,-2934.81281528,0.0001963,2]
[366982221,1750604949788,-2934.81281528,0.0001963,2]
[366982222,1750604949815,-2934.81281528,0.0001963,2]
[366982223,1750604949842,-2934.81281528,0.0001963,2]
[366982224,1750604949869,-2934.81281528,0.0001963,2]
[366982225,1750604949896,-2934.81281528,0.0001963,2]
[366982226,1750604949926,-2934.81281528,0.0001963,2]
[366982227,1750604949952,-2934.81281528,0.0001963,2]
[366982228,1750604949979,-2934.81281528,0.0001963,2]
[366982229,1750604950004,-2934.81281528,0.0001963,2]
[366982230,1750604950029,-2934.81281528,0.0001963,2]
[366982231,1750604950055,-2934.81281528,0.0001963,2]
[366982232,1750604950080,-2934.81281528,0.0001963,2]
[366982233,1750604950106,-2934.81281528,0.0001963,2]
[366982234,1750604950133,-2934.81281528,0.0001963,2]
[366982235,1750604950160,-2934.81281528,0.0001963,2]
[366982236,1750604950185,-2934.81281528,0.0001963,2]
[366982237,1750604950212,-2934.81281528,0.0001963,2]
[366982238,1750604950237,-2934.81281528,0.0001963,2]
[366982239,1750604950263,-2934.81281528,0.0001963,2]
[366982240,1750604950289,-2934.81281528,0.0001963,2]
[366982241,1750604950318,-500.0,0.0001963,2]
[366982242,1750604950344,-2880.14473343,0.0001963,2]
[366982243,1750604950370,-2880.14473343,0.0001963,2]
[366982244,1750604950396,-2613.18482196,0.0001963,2]
[366982245,1750604951059,-266.95991147,0.0001963,2]
[366982246,1750604951084,-2880.14473343,0.0001963,2]
[366982247,1750604951111,-2880.14473343,0.0001963,2]
[366982248,1750604951139,-2880.14473343,0.0001963,2]
[366982249,1750604951167,-2880.14473343,0.0001963,2]
[366982250,1750604951192,-2880.14473343,0.0001963,2]
[366982251,1750604951218,-2880.14473343,0.0001963,2]
[366982252,1750604951244,-2880.14473343,0.0001963,2]
[366982253,1750604951268,-2880.14473343,0.0001963,2]
[366982254,1750604951293,-2880.14473343,0.0001963,2]
[366982255,1750604951317,-2880.14473343,0.0001963,2]
[366982256,1750604951343,-2880.14473343,0.0001963,2]
[366982257,1750604951369,-2880.14473343,0.0001963,2]
[366982258,1750604951397,-2880.14473343,0.0001963,2]
[366982259,1750604951424,-2880.14473343,0.0001963,2]
[366982260,1750604951446,-500.0,0.0001963,2]
[366982261,1750604951471,-381.42478151,0.0001963,2]
[366982262,1750604951492,-500.0,0.0001963,2]
[366982263,1750604951517,-500.0,0.0001963,2]
[366982264,1750604951541,-500.0,0.0001963,2]
[366982265,1750604951563,-50000.0,0.00019631,2]
[366982266,1750604951586,-5789.29,0.00019633,3]
[366982267,1750604951648,-2894.65,0.00019633,3]
[366982268,1750604951672,-1447.32,0.00019633,3]
[366982269,1750604951698,-723.66,0.00019633,3]
[366982270,1750604951721,-361.83,0.00019633,3]
[366982271,1750604951744,-180.92,0.00019633,3]
[366982272,1750604951767,-542.78,0.00019633,3]
[366982273,1750604951789,-846.39664074,0.00019633,3]
[366982274,1750604951812,-12551.52821599,0.00019633,3]
[366982275,1750604951833,-213.59462818,0.00019633,3]
[366982276,1750604951854,-500.0,0.00019643,2]
[366982277,1750604951877,-2277.0,0.00019644,2]
[366982278,1750604951899,-502.94020475,0.00019673,2]
[366982279,1750604951923,-500.0,0.00019673,2]
[366982280,1750604951944,-500.0,0.00019673,2]
[366982281,1750604951964,-500.0,0.00019673,2]
[366982282,1750604951985,-500.0,0.00019673,2]
[366982283,1750604952005,-506.31573007,0.00019673,2]
[366982284,1750604952030,-466.79696628,0.00019673,2]
[366982285,1750604952051,-500.0,0.00019673,2]
[366982286,1750604952071,-500.0,0.00019673,2]
[366982287,1750604952092,-500.0,0.00019673,2]
[366982288,1750604952113,-500.0,0.00019673,2]
[366982289,1750604952133,-500.0,0.00019673,2]
[366982290,1750604952155,-500.0,0.00019673,2]
[366982291,1750604952176,-500.0,0.00019673,2]
[366982292,1750604952197,-179.72170202,0.00019673,2]
[366982293,1750604952219,-500.0,0.00019673,2]
[366982294,1750604952240,-500.0,0.00019673,2]
[366982295,1750604952631,633.65829031,0.00019673,2]
[366982296,1750604953019,-250.097638,0.00019755,2]
[366982297,1750604954423,27116.09762756,0.00025,120]
[366982298,1750604962359,3916.99683747,0.0001963,2]
[366982299,1750604962429,3916.99683747,0.0001963,2]
[366982300,1750604962490,3916.99683747,0.0001963,2]
[366982301,1750604962852,3916.99683747,0.0001963,2]
[366982302,1750604962902,3916.99683747,0.0001963,2]
[366982303,1750604962962,3916.99683747,0.0001963,2]
[366982304,1750604963003,3916.99683747,0.0001963,2]
[366982305,1750604963054,3916.99683747,0.0001963,2]
[366982306,1750604963099,3916.99683747,0.0001963,2]
[366982307,1750604963135,3916.99683747,0.0001963,2]
[366982308,1750604963477,3916.99683747,0.0001963,2]
[366982309,1750604963526,3916.99683747,0.0001963,2]
[366982310,1750604965230,200.22507121,0.00019622,2]
[366982311,1750604983824,498.094321,0.00019359,2]
[366982312,1750605001568,236.133221,0.00019226,2]
[366982313,1750605003986,500.0,0.00019673,2]
[366982314,1750605004021,500.0,0.00019673,2]
[366982315,1750605004117,190.10645576,0.00019673,2]
[366982316,1750605004355,500.0,0.00019673,2]
[366982317,1750605004388,500.0,0.00019673,2]
[366982318,1750605004608,500.0,0.00019673,2]
[366982319,1750605004636,412.50871105,0.00019673,2]
[366982320,1750605004869,500.0,0.00019673,2]
[366982321,1750605004940,500.0,0.00019673,2]
[366982322,1750605005057,500.0,0.00019673,2]
[366982323,1750605005122,500.0,0.00019673,2]
[366982324,1750605005156,500.0,0.00019673,2]
[366982325,1750605005800,500.0,0.00019673,2]
[366982326,1750605007195,1200.0,0.00019672,2]
[366982327,1750605007998,151.0,0.0001962,2]
[366982328,1750605008714,151.0,0.0001962,2]
[366982329,1750605009324,151.0,0.0001962,2]
[366982330,1750605009977,245.961565,0.0001962,2]
[366982331,1750605016784,3000.0,0.00024,30]
[366982353,1750605032124,156.587,0.0001962,2]
[366982359,1750605032647,-300.0,0.00019795,2]
[366982360,1750605032657,-300.0,0.00019795,2]
[366982361,1750605032667,-300.0,0.00019795,2]
[366982362,1750605032676,-1436.89,0.00019796,2]
[366982363,1750605032686,-1436.89,0.00019796,2]
[366982364,1750605032698,-1436.89,0.00019796,2]
[366982365,1750605032711,-414.59811191,0.00019799,2]
[366982366,1750605032720,-151.0,0.000198,2]
[366982367,1750605032735,-151.0,0.000199,2]
[366982368,1750605032746,-500.0,0.0002,2]
[366982369,1750605032756,-160.0,0.0002,3]
[366982370,1750605032766,-1988.96653773,0.0002,2]
[366982380,1750605032981,-2204.7,0.0002,2]
[366982382,1750605032993,-1194.0,0.0002,2]
[366982469,1750605038584,-4626.11963098,0.0002,2]
[366982471,1750605038594,-13989.92899765,0.0002,2]
[366982473,1750605038603,-151.0,0.000201,3]
[366982475,1750605038612,-151.0,0.000201,3]
[366982478,1750605038623,-5888.0,0.00020107,2]
[366982481,1750605038632,-341.00284776,0.00020121,2]
[366982484,1750605038641,-414.59811191,0.00020152,2]
[366982487,1750605038651,-267.779643,0.00020187,2]
[366982490,1750605038660,-605.00459029,0.0002022,2]
[366982493,1750605038669,-619.70537815,0.0002022,2]
[366982496,1750605038678,-500.0,0.0002022,2]
[366982499,1750605038690,-500.0,0.0002022,2]
[366982501,1750605038703,-241.81093094,0.0002022,2]
[366982505,1750605038713,-500.0,0.0002022,2]
[366982508,1750605038723,-375.69549741,0.0002022,2]
[366982511,1750605038738,-500.0,0.0002022,2]
[366982514,1750605038755,-500.0,0.0002022,2]
[366982517,1750605038765,-500.0,0.0002022,2]
[366982519,1750605038775,-500.0,0.0002022,2]
[366982520,1750605038784,-500.0,0.0002022,2]
[366982522,1750605038794,-500.0,0.0002022,2]
[366982525,1750605038804,-500.0,0.0002022,2]
[366982526,1750605038813,-500.0,0.0002022,2]
[366982528,1750605038822,-500.0,0.0002022,2]
[366982530,1750605038832,-500.0,0.0002022,2]
[366982532,1750605038841,-500.0,0.0002022,2]
[366982534,1750605038850,-500.0,0.0002022,2]
[366982536,1750605038859,-500.0,0.0002022,2]
[366982538,1750605038869,-500.0,0.0002022,2]
[366982540,1750605038879,-500.0,0.0002022,2]
[366982542,1750605038888,-500.0,0.0002022,2]
[366982544,1750605038898,-500.0,0.0002022,2]
[366982546,1750605038907,-500.0,0.0002022,2]
[366982548,1750605038917,-500.0,0.0002022,2]
[366982550,1750605038928,-500.0,0.0002022,2]
[366982552,1750605038937,-500.0,0.0002022,2]
[366982554,1750605038947,-500.0,0.0002022,2]
[366982556,1750605038958,-500.0,0.0002022,2]
[366982558,1750605038967,-500.0,0.0002022,2]
[366982560,1750605038978,-500.0,0.0002022,2]
[366982562,1750605038988,-500.0,0.0002022,2]
[366982564,1750605038998,-1000.0,0.00020221,2]
[366982566,1750605039007,-1000.0,0.00020221,2]
[366982568,1750605039016,-1000.0,0.00020221,2]
[366982570,1750605039027,-1008.01391879,0.00020221,2]
[366982572,1750605039037,-162.82399367,0.00020221,2]
[366982574,1750605039046,-1000.0,0.00020221,2]
[366982576,1750605039055,-472.56435756,0.00020221,2]
[366982578,1750605039065,-1000.0,0.00020221,2]
[366982580,1750605039074,-1017.85670601,0.00020221,2]
[366982582,1750605039085,-1000.0,0.00020221,2]
[366982584,1750605039095,-502.38514315,0.00020221,2]
[366982586,1750605039105,-266.57744763,0.00020221,2]
[366982588,1750605039114,-507.99616944,0.00020221,2]
[366982590,1750605039123,-1000.0,0.00020221,2]
[366982592,1750605039133,-1013.74720766,0.00020221,2]
[366982594,1750605039142,-1000.0,0.00020221,2]
[366982596,1750605039152,-1000.0,0.00020221,2]
[366982598,1750605039162,-650.40118416,0.00020221,2]
[366982600,1750605039172,-279.96,0.00020259,2]
[366982602,1750605039181,-151.0,0.000203,4]
[366982604,1750605039191,-151.0,0.000203,3]
[366982606,1750605039200,-414.59811191,0.0002035,2]
[366982608,1750605039209,-1436.89,0.00020379,2]
[366982610,1750605039219,-275.91590105,0.00020497,2]
[366982612,1750605039229,-151.0,0.000205,3]
[366982614,1750605039239,-151.0,0.000205,3]
[366982616,1750605039248,-635.41,0.00020547,7]
[366982618,1750605039258,-500.0,0.00020548,2]
[366982620,1750605039268,-5000.0,0.00020589,2]
[366982622,1750605039277,-151.0,0.000206,4]
[366982624,1750605039287,-6406.28,0.000206,2]
[366982626,1750605039296,-414.59811191,0.00020631,2]
[366982628,1750605039305,-500.0,0.00020667,2]
[366982630,1750605039315,-500.0,0.00020667,2]
[366982632,1750605039324,-500.0,0.00020667,2]
[366982634,1750605039334,-166.99734705,0.00020667,2]
[366982636,1750605039344,-500.0,0.00020667,2]
[366982638,1750605039354,-500.0,0.00020667,2]
[366982640,1750605039363,-500.0,0.00020667,2]
[366982642,1750605039372,-500.0,0.00020667,2]
[366982644,1750605039382,-500.0,0.00020667,2]
[366982646,1750605039392,-437.95883744,0.00020667,2]
[366982648,1750605039402,-500.0,0.00020667,2]
[366982650,1750605039411,-500.0,0.00020667,2]
[366982651,1750605039420,-500.0,0.00020667,2]
[366982654,1750605039431,-500.0,0.00020667,2]
[366982656,1750605039440,-500.0,0.00020667,2]
[366982658,1750605039450,-151.0,0.00020668,2]
[366982659,1750605039459,-151.0,0.00020668,2]
[366982661,1750605039469,-207.4,0.00020668,2]
[366982663,1750605039482,-151.0,0.00020668,2]
[366982665,1750605039492,-151.0,0.00020668,2]
[366982667,1750605039502,-1688.0,0.00020668,2]
[366982670,1750605039524,-151.0,0.00020668,2]
[366982671,1750605039547,-151.0,0.00020668,2]
[366982673,1750605039576,-500.0,0.00020668,2]
[366982675,1750605039587,-1000.0,0.00020668,2]
[366982677,1750605039597,-151.0,0.00020668,2]
[366982679,1750605039607,-500.0,0.00020668,2]
[366982682,1750605039617,-1000.0,0.00020668,2]
[366982684,1750605039627,-151.0,0.00020668,2]